bitfinex/quotes_BTCUSD_20250129
["timestamp","ask_amount","ask_price","bid_price","bid_amount"]
[1738156927844,0.01745066,101970.0,101960.0,2.29665424]
[1738156928061,0.01745066,101970.0,101960.0,2.30897424]
[1738156928274,0.01745066,101970.0,101960.0,2.41991689]
[1738156928486,0.01745066,101970.0,101960.0,2.30897424]
[1738156929450,0.01745066,101970.0,101960.0,2.28897424]
[1738156929657,0.01745066,101970.0,101960.0,2.25861806]
[1738156931575,0.01745066,101970.0,101960.0,2.27861806]
[1738156931827,0.01745066,101970.0,101960.0,2.25861806]
[1738156932080,0.14035066,101970.0,101960.0,1.8553787]
[1738156932353,0.14035066,101970.0,101960.0,1.71967028]
[1738156932614,0.28745266,101970.0,101960.0,0.98745865]
[1738156932870,0.39839531,101970.0,101960.0,0.98700017]
[1738156933103,0.28738266,101970.0,101960.0,1.13211617]
[1738156933316,0.28738266,101970.0,101960.0,0.98000017]
[1738156933542,0.42132531,101970.0,101960.0,0.00548559]
[1738156933785,0.275616,101960.0,101950.0,0.0001902]
[1738156934035,0.38655865,101960.0,101950.0,0.0001902]
[1738156936060,0.224145,101940.0,101930.0,1.07925678]
[1738156936264,0.270245,101940.0,101930.0,0.0001422]
[1738156938697,0.270245,101940.0,101930.0,0.97665678]
[1738156939047,0.270245,101940.0,101930.0,0.97865678]
[1738156939256,0.1231,101940.0,101930.0,1.12581578]
[1738156939466,0.12266951,101940.0,101930.0,1.12581578]
[1738156939897,0.12266951,101940.0,101930.0,1.22305894]
[1738156940101,0.12266951,101940.0,101930.0,1.22354276]
[1738156941393,0.12266951,101940.0,101930.0,1.22994047]
[1738156942902,0.12266951,101940.0,101930.0,1.22945665]
[1738156943085,0.12266951,101940.0,101930.0,0.98505449]
[1738156943086,0.27083895,101940.0,101930.0,0.98505449]
[1738156943238,0.26981451,101940.0,101930.0,0.98505449]
[1738156943857,0.76981451,101940.0,101930.0,0.98505449]
[1738156947689,0.76981451,101940.0,101930.0,1.13221349]
[1738156948358,0.62266951,101940.0,101930.0,1.71779294]
[1738156949416,0.62266951,101940.0,101930.0,1.71579294]
[1738156950231,0.62266951,101940.0,101930.0,1.71779294]
[1738156950659,0.62266951,101940.0,101930.0,1.71579294]
[1738156951072,0.62266951,101940.0,101930.0,1.71479294]
[1738156951481,0.76981451,101940.0,101930.0,0.98205449]
[1738156951678,0.76981451,101940.0,101930.0,1.12921349]
[1738156952656,0.76981451,101940.0,101930.0,1.13021349]
[1738156952858,0.90375716,101940.0,101930.0,0.98305449]
[1738156953078,0.90375716,101940.0,101930.0,0.98205449]
[1738156953338,1.00100032,101940.0,101930.0,0.98205449]
[1738156953892,1.00100032,101940.0,101930.0,0.00653991]
[1738156955165,0.79281451,101940.0,101930.0,0.00653991]
[1738156955727,0.81228153,101940.0,101930.0,0.00653991]
[1738156956757,0.82084207,101940.0,101930.0,0.00653991]
[1738156957586,0.93178472,101940.0,101930.0,0.00653991]
[1738156957781,1.02902788,101940.0,101930.0,0.00653991]
[1738156959251,1.02876792,101940.0,101930.0,0.00653991]
[1738156959467,1.17876792,101940.0,101930.0,0.00653991]
[1738156959695,1.28971057,101940.0,101930.0,0.00653991]
[1738156959905,1.29922675,101940.0,101930.0,0.00653991]
[1738156960120,0.32891665,101920.0,101910.0,0.0001423]
[1738156960558,0.47891665,101920.0,101910.0,0.0001423]
[1738156960768,0.57615981,101920.0,101910.0,0.0001423]
[1738156962281,0.65905981,101920.0,101910.0,0.0001423]
[1738156963380,0.66005981,101920.0,101910.0,0.0001423]
[1738156964112,0.67973523,101920.0,101910.0,0.0001423]
[1738156964740,0.68860051,101920.0,101910.0,0.0001423]
[1738156965318,0.69811669,101920.0,101910.0,0.0001423]
[1738156965730,0.69811669,101920.0,101910.0,0.00199853]
[1738156966156,0.69711669,101920.0,101910.0,0.00199853]
[1738156966629,0.80805934,101920.0,101910.0,0.00199853]
[1738156966846,0.69711669,101920.0,101910.0,0.00199853]
[1738156967049,0.69711669,101920.0,101910.0,0.00299853]
[1738156967983,0.69711669,101920.0,101910.0,0.01163008]
[1738156968182,0.69711669,101920.0,101910.0,0.00299853]
[1738156968348,0.69711669,101920.0,101910.0,0.01163008]
[1738156968769,0.276903,101900.0,101890.0,0.0001903]
[1738156968973,0.50808881,101900.0,101890.0,0.00033572]
[1738156969388,0.50808881,101900.0,101890.0,0.00176642]
[1738156969621,0.50808881,101900.0,101890.0,0.00033572]
[1738156969810,0.50808881,101900.0,101890.0,0.00176642]
[1738156969965,0.50908881,101900.0,101890.0,0.00033572]
[1738156970173,0.51108881,101900.0,101890.0,0.00176642]
[1738156970372,0.51108881,101900.0,101890.0,0.00033572]
[1738156970586,0.51108881,101900.0,101890.0,0.00176642]
[1738156970785,0.40014616,101900.0,101890.0,0.00033572]
[1738156970988,0.40014616,101900.0,101890.0,0.00912247]
[1738156971193,0.40014616,101900.0,101890.0,0.00033572]
[1738156971400,0.40014616,101900.0,101890.0,0.00769177]
[1738156971737,0.51108881,101900.0,101890.0,0.00033572]
[1738156972197,0.51108881,101900.0,101890.0,0.00769177]
[1738156972387,0.51108881,101900.0,101890.0,0.00033572]
[1738156972589,0.51108881,101900.0,101890.0,0.00769177]
[1738156972790,0.51108881,101900.0,101890.0,0.00033572]
[1738156972995,0.51987098,101900.0,101890.0,0.00769177]
[1738156973174,0.53913789,101900.0,101890.0,0.00769177]
[1738156975489,0.68913789,101900.0,101890.0,0.00769177]
[1738156976466,0.147246,101870.0,101860.0,0.0251423]
[1738156976726,0.225246,101870.0,101860.0,0.0251423]
[1738156977394,0.248246,101870.0,101860.0,0.0251423]
[1738156977875,0.249246,101870.0,101860.0,0.0251423]
[1738156978122,0.27821925,101870.0,101860.0,0.0251423]
[1738156978562,0.27821925,101870.0,101860.0,0.0271423]
[1738156979657,0.27821925,101870.0,101860.0,0.0251423]
[1738156979972,0.27721925,101870.0,101860.0,0.0251423]
[1738156980227,0.27821925,101870.0,101860.0,0.0251423]
[1738156980719,0.28121925,101870.0,101860.0,0.0251423]
[1738156980948,0.03297325,101870.0,101860.0,0.1724023]
[1738156981209,0.03297325,101870.0,101860.0,0.17288612]
[1738156982011,0.004,101870.0,101860.0,0.17288612]
[1738156982273,0.003,101870.0,101860.0,0.17288612]
[1738156982772,0.03200192,101870.0,101860.0,0.27012928]
[1738156983020,0.03200192,101870.0,101860.0,0.38107193]
[1738156983525,0.03300192,101870.0,101860.0,0.38107193]
[1738156984294,0.004,101870.0,101860.0,0.38728576]
[1738156984804,0.004,101870.0,101860.0,0.61448576]
[1738156985011,0.004,101870.0,101860.0,0.66048576]
[1738156985431,0.001,101870.0,101860.0,0.66048576]
[1738156985651,0.02902144,101890.0,101880.0,0.22981582]
[1738156985907,0.02902144,101890.0,101880.0,1.90136868]
[1738156986179,0.02902144,101890.0,101880.0,1.90757005]
[1738156986914,0.00920521,101900.0,101890.0,0.14770082]
[1738156987375,0.00920521,101900.0,101890.0,0.15389799]
[1738156988037,0.00014523,101900.0,101890.0,0.15389799]
[1738156988451,0.00014523,101900.0,101890.0,0.40806516]
[1738156988662,0.00114523,101900.0,101890.0,0.4070838]
[1738156988818,0.00114523,101900.0,101890.0,0.29614115]
[1738156989231,0.00144427,101900.0,101890.0,0.29614115]
[1738156989433,0.00044427,101900.0,101890.0,0.29614115]
[1738156990092,0.00044427,101900.0,101890.0,0.29575121]
[1738156990506,0.00144427,101900.0,101890.0,0.29575121]
[1738156990713,0.00144427,101900.0,101890.0,0.25075121]
[1738156990918,0.00344427,101900.0,101890.0,0.25075121]
[1738156991243,0.00144427,101900.0,101890.0,0.25075121]
[1738156992289,0.00044427,101900.0,101890.0,0.25075121]
[1738156993338,0.14764727,101900.0,101890.0,0.15350805]
[1738156994472,0.00044427,101900.0,101890.0,0.15350805]
[1738156996154,0.01861728,101900.0,101890.0,0.15350805]
[1738156997752,0.01861728,101900.0,101890.0,0.36169386]
[1738156997955,0.01861728,101900.0,101890.0,0.58879386]
[1738156998173,0.01861728,101900.0,101890.0,0.68879386]
[1738156998395,0.01861728,101900.0,101890.0,0.73649386]
[1738156998613,0.01861728,101900.0,101890.0,0.86703449]
[1738156998822,0.00044427,101900.0,101890.0,0.86703449]
[1738156999312,0.00044427,101900.0,101890.0,0.86903449]
[1738157000610,0.00044427,101900.0,101890.0,0.76903449]
[1738157000784,0.00044427,101900.0,101890.0,0.77503449]
[1738157001392,0.00044427,101900.0,101890.0,0.74449386]
[1738157001772,0.00044427,101900.0,101890.0,0.74463626]
[1738157002296,0.00044427,101900.0,101890.0,0.78794754]
[1738157002496,0.00044427,101900.0,101890.0,0.88794754]
[1738157003695,0.00044427,101900.0,101890.0,0.91094754]
[1738157003903,0.00044427,101900.0,101890.0,0.94094754]
[1738157004530,2.7e-07,101900.0,101890.0,0.94094754]
[1738157006468,2.7e-07,101900.0,101890.0,0.94094754]
[1738157007240,2.7e-07,101900.0,101890.0,0.94086754]
[1738157008902,2.7e-07,101900.0,101890.0,1.08058586]
[1738157009102,2.7e-07,101900.0,101890.0,1.10859186]
[1738157009389,2.7e-07,101900.0,101890.0,0.96964321]
[1738157009715,2.7e-07,101900.0,101890.0,0.77514754]
[1738157009914,2.7e-07,101900.0,101890.0,0.63802754]
[1738157010112,2.7e-07,101900.0,101890.0,0.52441626]
[1738157010292,2.7e-07,101900.0,101890.0,0.67441626]
[1738157010565,2.7e-07,101900.0,101890.0,0.68341626]
[1738157010734,2.7e-07,101900.0,101890.0,0.77241626]
[1738157011138,2.7e-07,101900.0,101890.0,0.88811626]
[1738157011335,2.7e-07,101900.0,101890.0,1.02705891]
[1738157011588,2.7e-07,101900.0,101890.0,1.08094777]
[1738157012006,2.7e-07,101900.0,101890.0,1.08994777]
[1738157012209,2.7e-07,101900.0,101890.0,1.19358777]
[1738157014300,2.7e-07,101900.0,101890.0,1.05419691]
[1738157014515,2.7e-07,101900.0,101890.0,1.16513956]
[1738157019741,2.7e-07,101900.0,101890.0,1.05419691]
[1738157019970,2.7e-07,101900.0,101890.0,1.16513956]
[1738157020181,0.07839883,101930.0,101920.0,0.25009388]
[1738157020401,0.07839883,101930.0,101920.0,0.60545369]
[1738157020620,0.07839883,101930.0,101920.0,0.61016089]
[1738157023378,8.3e-07,101930.0,101920.0,0.64065467]
[1738157023820,8.3e-07,101930.0,101920.0,0.77365467]
[1738157024037,8.3e-07,101930.0,101920.0,0.79365467]
[1738157025556,8.3e-07,101930.0,101920.0,0.78365467]
[1738157025847,8.3e-07,101930.0,101920.0,0.79365467]
[1738157026053,8.3e-07,101930.0,101920.0,0.78365467]
[1738157026470,8.3e-07,101930.0,101920.0,0.76065467]
[1738157026889,8.3e-07,101930.0,101920.0,0.7805977]
[1738157027730,8.3e-07,101930.0,101920.0,0.76951454]
[1738157027939,8.3e-07,101930.0,101920.0,0.78951454]
[1738157031705,0.07550083,101930.0,101920.0,0.66957151]
[1738157031908,0.07550083,101930.0,101920.0,0.68197151]
[1738157036185,0.07550083,101930.0,101920.0,0.66197151]
[1738157036395,0.07550083,101930.0,101920.0,0.68197151]
[1738157036614,0.07550083,101930.0,101920.0,0.66957151]
[1738157036833,8.3e-07,101930.0,101920.0,0.78217151]
[1738157037078,8.3e-07,101930.0,101920.0,0.78416651]
[1738157037935,0.01000083,101930.0,101920.0,0.76416651]
[1738157038268,0.01000083,101930.0,101920.0,0.76430881]
[1738157043491,0.01000083,101930.0,101920.0,0.53184932]
[1738157043492,0.09100083,101930.0,101920.0,0.53184932]
[1738157043708,0.09100083,101930.0,101920.0,0.28175544]
[1738157043913,0.14000083,101930.0,101920.0,0.25135554]
[1738157045859,0.14000083,101930.0,101920.0,0.36229819]
[1738157046681,0.14000083,101930.0,101920.0,0.25135554]
[1738157052047,0.14000083,101930.0,101920.0,0.15411238]
[1738157053631,0.28715983,101930.0,101920.0,0.0068445]
[1738157053857,0.39810248,101930.0,101920.0,0.0068445]
[1738157054288,0.28715983,101930.0,101920.0,0.0068445]
[1738157054497,0.49534564,101930.0,101920.0,0.0068445]
[1738157054704,0.147188,101910.0,101900.0,0.196259]
[1738157054909,0.27271244,101910.0,101900.0,0.196259]
[1738157055115,0.271688,101910.0,101900.0,0.196259]
[1738157055332,0.271688,101910.0,101900.0,0.19635288]
[1738157055532,0.271688,101910.0,101900.0,0.196259]
[1738157056145,0.467948,101910.0,101890.0,0.5399074]
[1738157056353,0.0765,101900.0,101890.0,0.49003844]
[1738157056556,0.0765,101900.0,101890.0,0.64003844]
[1738157057209,0.0765,101900.0,101890.0,0.54279528]
[1738157057428,0.0765,101900.0,101890.0,0.54579528]
[1738157057644,0.0765,101900.0,101890.0,0.54279528]
[1738157058060,0.0765,101900.0,101890.0,0.3927014]
[1738157058277,0.0765,101900.0,101890.0,0.0001424]
[1738157058278,0.27202744,101900.0,101890.0,0.0001424]
[1738157058496,0.271003,101900.0,101890.0,0.0001424]
[1738157058703,0.271003,101900.0,101890.0,0.0011424]
[1738157059513,0.271003,101900.0,101890.0,0.0031424]
[1738157060582,0.271003,101900.0,101890.0,0.1503594]
[1738157060790,0.271003,101900.0,101890.0,0.0011424]
[1738157061727,0.271003,101900.0,101890.0,0.0001424]
[1738157062140,0.271003,101900.0,101890.0,0.0011424]
[1738157062365,0.271003,101900.0,101890.0,0.00668321]
[1738157062576,0.271003,101900.0,101890.0,0.0021424]
[1738157062792,0.271003,101900.0,101890.0,0.00568337]
[1738157063012,0.271003,101900.0,101890.0,0.0021424]
[1738157063232,0.271003,101900.0,101890.0,0.00568273]
[1738157063233,0.38194565,101900.0,101890.0,0.00568273]
[1738157063445,0.38194565,101900.0,101890.0,0.0021424]
[1738157063671,0.47918881,101900.0,101890.0,0.0021424]
[1738157063872,0.47918881,101900.0,101890.0,0.00568273]
[1738157064292,0.47918881,101900.0,101890.0,0.00368273]
[1738157065329,0.52049113,101900.0,101890.0,0.00368273]
[1738157065541,0.52149113,101900.0,101890.0,0.00368273]
[1738157065966,0.52249113,101900.0,101890.0,0.00368273]
[1738157067840,0.41154848,101900.0,101890.0,0.00368273]
[1738157068054,0.39927333,101900.0,101890.0,0.00368273]
[1738157071605,0.51021598,101900.0,101890.0,0.00368273]
[1738157072310,0.39927333,101900.0,101890.0,0.00368273]
[1738157072923,0.41154786,101900.0,101890.0,0.00368273]
[1738157073743,0.1671017,101900.0,101890.0,0.15089973]
[1738157074277,0.3143047,101900.0,101890.0,0.15089973]
[1738157074684,0.30198752,101900.0,101890.0,0.15089973]
[1738157075101,0.30198752,101900.0,101890.0,0.00368273]
[1738157075529,0.30198752,101900.0,101890.0,0.15089973]
[1738157075866,0.1258,101900.0,101890.0,0.15089973]
[1738157076809,0.0785,101900.0,101890.0,0.15089973]
[1738157077807,0.002,101900.0,101890.0,0.51016087]
[1738157078007,0.002,101900.0,101890.0,0.50917942]
[1738157081625,0.102,101900.0,101890.0,0.50917942]
[1738157082053,0.102,101900.0,101890.0,0.63217942]
[1738157082754,0.1,101900.0,101890.0,0.63217942]
[1738157083197,0.1,101900.0,101890.0,0.40123677]
[1738157083835,0.1,101900.0,101890.0,0.40281263]
[1738157084291,0.323303,101900.0,101890.0,0.00825859]
[1738157084547,0.63364565,101900.0,101890.0,0.00825859]
[1738157084757,0.63364565,101900.0,101890.0,0.0031424]
[1738157084758,0.74079493,101900.0,101890.0,0.0031424]
[1738157085020,0.78963975,101900.0,101890.0,0.0031424]
[1738157085237,0.78963975,101900.0,101890.0,0.0021424]
[1738157085539,0.78963975,101900.0,101890.0,0.0001424]
[1738157085750,0.88799651,101900.0,101890.0,0.0001424]
[1738157085946,0.88699651,101900.0,101890.0,0.0001424]
[1738157086429,0.90899651,101900.0,101890.0,0.0001424]
[1738157088077,0.92887577,101900.0,101890.0,0.0001424]
[1738157088486,0.83151901,101900.0,101890.0,0.0001424]
[1738157091710,0.84461289,101900.0,101890.0,1e-08]
[1738157091910,0.82461289,101900.0,101890.0,1e-08]
[1738157092147,0.82161289,101900.0,101890.0,1e-08]
[1738157092464,0.55436973,101900.0,101890.0,1e-08]
[1738157092674,0.34792708,101900.0,101890.0,0.14721701]
[1738157092885,0.34792708,101900.0,101890.0,1e-08]
[1738157093703,0.34692708,101900.0,101890.0,1e-08]
[1738157094497,0.34592708,101900.0,101890.0,1e-08]
[1738157094744,0.54220308,101900.0,101880.0,0.53875462]
[1738157094942,0.73848408,101900.0,101880.0,0.63614301]
[1738157095148,0.93476508,101900.0,101880.0,0.63614301]
[1738157095347,0.71860482,101900.0,101880.0,0.63516656]
[1738157095608,0.08851232,101890.0,101880.0,0.49007827]
[1738157095861,0.08851232,101890.0,101880.0,0.48900798]
[1738157096773,0.0413171,101890.0,101880.0,0.4889141]
[1738157097015,0.0413171,101890.0,101880.0,0.48900798]
[1738157097226,0.0413171,101890.0,101880.0,0.4889141]
[1738157097476,0.0413171,101890.0,101880.0,0.48900798]
[1738157097751,0.0423171,101890.0,101880.0,0.48900798]
[1738157098553,0.001,101890.0,101880.0,0.48900798]
[1738157099038,0.002,101890.0,101880.0,0.48900798]
[1738157099737,0.002,101890.0,101880.0,0.4889141]
[1738157099984,0.149217,101890.0,101880.0,0.4889141]
[1738157100235,0.002,101890.0,101880.0,0.48900798]
[1738157100482,0.149217,101890.0,101880.0,0.48900798]
[1738157100724,0.149217,101890.0,101880.0,0.4889141]
[1738157101216,0.149217,101890.0,101880.0,0.48900798]
[1738157102060,0.149217,101890.0,101880.0,0.4889141]
[1738157102287,0.149217,101890.0,101880.0,0.48900798]
[1738157102769,0.03104804,101890.0,101880.0,0.48900798]
[1738157103322,0.03104804,101890.0,101880.0,0.84995063]
[1738157103543,0.03104804,101890.0,101880.0,0.93185063]
[1738157104163,0.001,101890.0,101880.0,0.93185063]
[1738157104367,0.001,101890.0,101880.0,0.93285063]
[1738157104783,0.001,101890.0,101880.0,0.95585063]
[1738157104991,0.001,101890.0,101880.0,1.06579328]
[1738157105199,0.1,101900.0,101890.0,0.42031088]
[1738157105418,0.1,101900.0,101890.0,0.77091669]
[1738157105631,0.1,101900.0,101890.0,0.70133186]
[1738157105869,0.1,101900.0,101890.0,0.80142574]
[1738157107317,0.1,101900.0,101890.0,0.80242574]
[1738157108390,0.1,101900.0,101890.0,0.80142574]
[1738157108618,0.1,101900.0,101890.0,0.80342574]
[1738157108827,0.1,101900.0,101890.0,1.33732574]
[1738157109692,0.1,101900.0,101890.0,1.33932574]
[1738157109896,0.1,101900.0,101890.0,1.33732574]
[1738157110105,0.1,101900.0,101890.0,1.30681669]
[1738157110313,0.1,101900.0,101890.0,1.34003856]
[1738157110532,0.1,101900.0,101890.0,1.17740281]
[1738157110731,0.1,101900.0,101890.0,1.20965669]
[1738157111156,0.1,101900.0,101890.0,1.22029669]
[1738157111590,0.1,101900.0,101890.0,1.23269669]
[1738157114632,0.1,101900.0,101890.0,0.69879669]
[1738157117471,0.10029883,101900.0,101890.0,0.69879669]
[1738157118699,0.10029883,101900.0,101890.0,0.64889669]
[1738157119445,0.10029883,101900.0,101890.0,0.52589669]
[1738157119655,0.10029883,101900.0,101890.0,0.51349669]
[1738157124444,0.10029883,101900.0,101890.0,0.63649669]
[1738157124895,0.10029883,101900.0,101890.0,0.74409176]
[1738157125820,0.10029883,101900.0,101890.0,0.78919176]
[1738157126030,0.10029883,101900.0,101890.0,0.88919176]
[1738157127076,0.06104483,101900.0,101890.0,1.02013441]
[1738157127490,8.3e-07,101900.0,101890.0,1.02013441]
[1738157128267,8.3e-07,101900.0,101890.0,0.78909788]
[1738157128466,8.3e-07,101900.0,101890.0,0.81209176]
[1738157128706,8.3e-07,101900.0,101890.0,0.76699176]
[1738157130570,8.3e-07,101900.0,101890.0,0.66699176]
[1738157132069,8.3e-07,101900.0,101890.0,0.67927176]
[1738157133276,8.3e-07,101900.0,101890.0,0.66699176]
[1738157133478,8.3e-07,101900.0,101890.0,0.52923176]
[1738157133686,8.3e-07,101900.0,101890.0,0.49873669]
[1738157134506,8.3e-07,101900.0,101890.0,0.67930999]
[1738157135006,8.3e-07,101900.0,101890.0,0.56697611]
[1738157135215,8.3e-07,101900.0,101890.0,0.63649669]
[1738157137444,8.3e-07,101900.0,101890.0,0.51349669]
[1738157137710,8.3e-07,101900.0,101890.0,0.54401165]
[1738157138140,8.3e-07,101900.0,101890.0,0.51349669]
[1738157138600,8.3e-07,101900.0,101890.0,0.64411032]
[1738157138804,8.3e-07,101900.0,101890.0,0.63611032]
[1738157139096,8.3e-07,101900.0,101890.0,0.63911032]
[1738157140027,8.3e-07,101900.0,101890.0,0.63611032]
[1738157140278,8.3e-07,101900.0,101890.0,0.63911032]
[1738157140514,8.3e-07,101900.0,101890.0,0.50849669]
[1738157141256,0.07550083,101900.0,101890.0,0.50863899]
[1738157142522,0.07550083,101900.0,101890.0,0.24760246]
[1738157142763,0.07550083,101900.0,101890.0,0.10038546]
[1738157142764,0.27240383,101900.0,101890.0,0.10038546]
[1738157143254,0.27240383,101900.0,101890.0,0.0031423]
[1738157143479,0.27240383,101900.0,101890.0,0.0001423]
[1738157144507,0.38334648,101900.0,101890.0,0.0001423]
[1738157144755,0.5779464,101900.0,101890.0,0.0001423]
[1738157145030,0.64049576,101900.0,101890.0,0.0001423]
[1738157145612,0.29084877,101890.0,101860.0,0.0001423]
[1738157145857,0.426546,101870.0,101860.0,0.0001423]
[1738157146074,0.54378916,101870.0,101860.0,0.0001423]
[1738157146483,0.65473181,101870.0,101860.0,0.0001423]
[1738157146690,0.54378916,101870.0,101860.0,0.0001423]
[1738157146910,0.37378916,101870.0,101860.0,0.0001423]
[1738157147133,0.276546,101870.0,101860.0,0.0001423]
[1738157147407,0.1293,101870.0,101860.0,0.25834495]
[1738157147640,0.1293,101870.0,101860.0,0.35568199]
[1738157148505,0.1303,101870.0,101860.0,0.35568199]
[1738157148883,0.1293,101870.0,101860.0,0.35568199]
[1738157149205,0.27757044,101870.0,101860.0,0.14749618]
[1738157149411,0.277546,101870.0,101860.0,0.0001423]
[1738157149616,0.277546,101870.0,101860.0,0.35568199]
[1738157149617,0.001,101870.0,101860.0,0.35568199]
[1738157149827,0.001,101870.0,101860.0,0.35558811]
[1738157150035,0.001,101870.0,101860.0,0.35568199]
[1738157151659,0.001,101870.0,101860.0,0.62868199]
[1738157152846,0.001,101870.0,101860.0,0.52858811]
[1738157153082,0.001,101870.0,101860.0,0.52868199]
[1738157153795,0.148246,101870.0,101860.0,0.24473934]
[1738157154063,0.0784,101870.0,101860.0,0.1474023]
[1738157154298,0.0784,101870.0,101860.0,0.25834495]
[1738157154542,0.0774,101870.0,101860.0,0.28134495]
[1738157155506,0.25357854,101870.0,101860.0,0.1724023]
[1738157155949,0.25357854,101870.0,101860.0,0.1704023]
[1738157156187,0.25357854,101870.0,101860.0,0.0291423]
[1738157156373,0.25357854,101870.0,101860.0,0.1704023]
[1738157156871,0.29967854,101870.0,101860.0,0.0001423]
[1738157158547,0.31198005,101870.0,101860.0,0.0001423]
[1738157160039,0.271746,101870.0,101860.0,0.0001423]
[1738157161917,0.272746,101870.0,101860.0,0.0001423]
[1738157165787,0.002,101870.0,101860.0,0.26773934]
[1738157166634,0.001,101870.0,101860.0,0.26773934]
[1738157167047,0.02998817,101870.0,101860.0,0.26773934]
[1738157167682,0.02898817,101870.0,101860.0,0.26773934]
[1738157168334,0.02898817,101870.0,101860.0,0.26973934]
[1738157168932,0.02898817,101870.0,101860.0,0.27073934]
[1738157171556,0.23063083,101880.0,101870.0,0.147246]
[1738157171767,0.08339883,101880.0,101870.0,0.147246]
[1738157172186,0.23063083,101880.0,101870.0,0.147246]
[1738157183586,0.23063083,101880.0,101860.0,0.66031846]
[1738157183789,0.42694783,101880.0,101860.0,0.66031846]
[1738157183966,0.62326583,101880.0,101860.0,0.66031846]
[1738157184338,0.147246,101870.0,101860.0,0.1704023]
[1738157184556,0.20682643,101870.0,101860.0,0.1704023]
[1738157184769,0.20682643,101870.0,101860.0,0.1714023]
[1738157185190,0.20682643,101870.0,101860.0,0.1724023]
[1738157185975,0.147246,101870.0,101860.0,0.1724023]
[1738157186189,0.14827044,101870.0,101860.0,0.1724023]
[1738157186571,0.14827044,101870.0,101860.0,0.0001423]
[1738157186778,0.274846,101870.0,101860.0,0.0031423]
[1738157187195,0.274846,101870.0,101860.0,0.1504023]
[1738157187379,0.274846,101870.0,101860.0,0.0031423]
[1738157187817,0.274846,101870.0,101860.0,0.0021423]
[1738157188052,0.274846,101870.0,101860.0,0.0001423]
[1738157188262,0.28431249,101870.0,101860.0,0.0001423]
[1738157189593,0.30387747,101870.0,101860.0,0.0001423]
[1738157190247,0.66206328,101870.0,101860.0,0.0001423]
[1738157190886,0.55112063,101870.0,101860.0,0.0001423]
[1738157191093,0.66206328,101870.0,101860.0,0.0001423]
[1738157191904,0.55112063,101870.0,101860.0,0.0001423]
[1738157192067,0.15663147,101870.0,101860.0,0.1474023]
[1738157192279,0.09016649,101870.0,101860.0,0.1474023]
[1738157192473,0.46545583,101880.0,101860.0,0.1474023]
[1738157192673,0.46545783,101880.0,101860.0,0.3437373]
[1738157192922,0.147246,101870.0,101860.0,0.1474023]
[1738157193124,0.65780496,101880.0,101860.0,0.3437403]
[1738157193334,0.65779896,101880.0,101860.0,0.7364233]
[1738157193502,0.001,101870.0,101860.0,0.1474023]
[1738157193706,0.0804,101870.0,101860.0,0.1474023]
[1738157194079,0.28621952,101870.0,101860.0,0.1474023]
[1738157195889,0.28621952,101870.0,101860.0,0.0001423]
[1738157197143,0.28621952,101870.0,101860.0,0.1474023]
[1738157197766,0.13897352,101870.0,101860.0,0.1474023]
[1738157197974,0.27881388,101880.0,101860.0,0.1474023]
[1738157198185,0.27881388,101880.0,101860.0,0.3437363]
[1738157198402,0.47512388,101880.0,101860.0,0.5400743]
[1738157198616,0.67173271,101880.0,101860.0,0.5400743]
[1738157198826,0.67173271,101880.0,101860.0,0.7364123]
[1738157199029,0.47542271,101880.0,101870.0,0.147246]
[1738157199237,0.47542271,101880.0,101860.0,0.7364093]
[1738157199447,0.147246,101870.0,101860.0,0.1474023]
[1738157199655,0.226346,101870.0,101860.0,0.0001423]
[1738157200080,0.249346,101870.0,101860.0,0.0001423]
[1738157202607,0.249346,101870.0,101860.0,0.1474023]
[1738157202811,0.249346,101870.0,101860.0,0.0001423]
[1738157203032,0.249346,101870.0,101860.0,0.1474023]
[1738157203652,0.249346,101870.0,101860.0,0.0001423]
[1738157205991,0.226346,101870.0,101860.0,0.1474023]
[1738157206405,0.0791,101870.0,101860.0,0.1474023]
[1738157206606,0.67454571,101880.0,101860.0,0.3437443]
[1738157206807,0.147246,101870.0,101860.0,0.1474023]
[1738157207220,0.253346,101870.0,101860.0,0.0001423]
[1738157210860,0.302646,101870.0,101860.0,0.0001423]
[1738157214492,0.14726,101860.0,101850.0,0.35834599]
[1738157215092,0.744416,101870.0,101850.0,0.35727614]
[1738157215321,0.14726,101860.0,101850.0,0.21000214]
[1738157215682,0.14726,101860.0,101850.0,0.21200214]
[1738157215894,0.14726,101860.0,101850.0,0.21000214]
[1738157216110,0.64726,101860.0,101850.0,0.21000214]
[1738157216461,0.5,101860.0,101850.0,0.49518183]
[1738157216675,0.52913915,101860.0,101850.0,0.54368183]
[1738157216874,0.52913915,101860.0,101850.0,0.57632196]
[1738157217084,0.52913915,101860.0,101850.0,0.43273918]
[1738157217283,0.52913915,101860.0,101850.0,0.35683918]
[1738157218432,0.5,101860.0,101850.0,0.35683918]
[1738157218851,0.5,101860.0,101850.0,0.31033918]
[1738157220553,0.64726,101860.0,101850.0,0.21949431]
[1738157220762,0.52913915,101860.0,101850.0,0.21949431]
[1738157220974,0.67639915,101860.0,101850.0,0.21949431]
[1738157221392,0.52913915,101860.0,101850.0,0.31683135]
[1738157222436,0.52913915,101860.0,101850.0,0.31583135]
[1738157222644,0.52913915,101860.0,101850.0,0.31397365]
[1738157223357,0.52913915,101860.0,101850.0,0.4249163]
[1738157223585,0.52913915,101860.0,101850.0,0.4269163]
[1738157223796,0.5,101860.0,101850.0,0.4269163]
[1738157224013,0.5,101860.0,101850.0,0.31697365]
[1738157224233,0.5,101860.0,101850.0,0.4279163]
[1738157224910,0.5,101860.0,101850.0,0.5695052]
[1738157225120,0.5,101860.0,101850.0,0.6695052]
[1738157225329,0.5,101860.0,101850.0,0.7471052]
[1738157225540,0.5,101860.0,101850.0,0.83366255]
[1738157225749,0.5,101860.0,101850.0,0.9446052]
[1738157226166,0.49959641,101860.0,101850.0,0.9446052]
[1738157227403,0.49959641,101860.0,101850.0,0.83366255]
[1738157228574,0.49959641,101860.0,101850.0,0.9446052]
[1738157228989,0.49959641,101860.0,101850.0,0.83366255]
[1738157229616,0.49959641,101860.0,101850.0,0.9446052]
[1738157231095,0.49959641,101860.0,101850.0,1.0446052]
[1738157231310,0.44069141,101860.0,101850.0,1.0446052]
[1738157231514,0.40142141,101860.0,101850.0,1.0446052]
[1738157232150,0.40142141,101860.0,101850.0,0.73256867]
[1738157232369,0.40142141,101860.0,101850.0,0.75506255]
[1738157232572,0.40142141,101860.0,101850.0,0.65296867]
[1738157232781,0.40142141,101860.0,101850.0,0.6224163]
[1738157232994,0.40142141,101860.0,101850.0,0.5859163]
[1738157233236,0.40142141,101860.0,101850.0,0.5769163]
[1738157233443,0.40142141,101860.0,101850.0,0.5829163]
[1738157234269,0.40142141,101860.0,101850.0,0.69385895]
[1738157234506,0.40142141,101860.0,101850.0,0.79385895]
[1738157234724,0.40172045,101860.0,101850.0,0.79385895]
[1738157236599,0.40172045,101860.0,101850.0,0.58282242]